bitfinex-derivatives/quotes_SOLF0:USTF0_20250904
["timestamp","ask_amount","ask_price","bid_price","bid_amount"]
[1756979617712,9.33611336,207.87,207.84,0.03490253]
[1756979618117,1.95611336,207.87,207.84,0.03490253]
[1756979618317,7.38,207.86,207.84,0.03490253]
[1756979618520,1.95611336,207.87,207.84,0.03490253]
[1756979618717,7.38,207.86,207.84,0.03490253]
[1756979619021,1.95611336,207.87,207.84,0.03490253]
[1756979619219,7.38,207.86,207.84,0.03490253]
[1756979619421,1.95611336,207.87,207.84,0.03490253]
[1756979620124,7.38,207.86,207.84,0.03490253]
[1756979620520,1.95611336,207.87,207.84,0.03490253]
[1756979621224,7.38,207.86,207.84,0.03490253]
[1756979621723,1.95611336,207.87,207.84,0.03490253]
[1756979622126,7.81,207.86,207.84,0.03490253]
[1756979622327,1.95611336,207.87,207.84,0.03490253]
[1756979623227,7.81,207.86,207.84,0.03490253]
[1756979623430,7.81,207.87,207.84,0.03490253]
[1756979623624,0.03070082,207.88,207.84,0.03490253]
[1756979623825,7.81,207.87,207.84,0.03490253]
[1756979624329,0.03070082,207.88,207.84,0.03490253]
[1756979624629,7.81,207.87,207.84,0.03490253]
[1756979625019,0.03070082,207.88,207.84,0.03490253]
[1756979625225,7.81,207.87,207.84,0.03490253]
[1756979627130,0.03070082,207.88,207.84,0.03490253]
[1756979627429,0.03070082,207.88,207.85,7.26]
[1756979627625,7.81,207.87,207.85,7.26]
[1756979627826,7.81,207.87,207.84,7.29490253]
[1756979628020,0.03070082,207.88,207.84,7.29490253]
[1756979628426,0.03070082,207.88,207.85,7.26]
[1756979628427,7.81,207.87,207.85,7.26]
[1756979628626,0.03070082,207.88,207.84,0.03490253]
[1756979628929,0.03070082,207.88,207.85,7.26]
[1756979629330,0.03070082,207.88,207.84,0.03490253]
[1756979629729,7.84070082,207.88,207.85,7.26]
[1756979629926,7.84070082,207.88,207.84,0.03490253]
[1756979631425,7.84070082,207.88,207.85,7.26]
[1756979631626,7.81,207.87,207.85,7.26]
[1756979638531,7.81,207.87,207.84,0.03490253]
[1756979638730,0.03070082,207.88,207.84,0.03490253]
[1756979639529,7.81,207.87,207.84,0.03490253]
[1756979639728,0.03070082,207.88,207.84,0.03490253]
[1756979640625,7.81,207.87,207.84,0.03490253]
[1756979640826,0.03070082,207.88,207.84,0.03490253]
[1756979641636,7.81,207.87,207.84,0.03490253]
[1756979641837,0.03070082,207.88,207.84,0.03490253]
[1756979642136,7.81,207.87,207.84,0.03490253]
[1756979642332,0.03070082,207.88,207.84,0.03490253]
[1756979642732,7.81,207.87,207.84,0.03490253]
[1756979644330,0.03070082,207.88,207.84,0.03490253]
[1756979644536,7.81,207.87,207.84,0.03490253]
[1756979644734,0.03070082,207.88,207.84,0.03490253]
[1756979645131,7.81,207.87,207.84,0.03490253]
[1756979645538,0.03070082,207.88,207.84,0.03490253]
[1756979645736,7.81,207.87,207.85,7.26]
[1756979646238,0.03070082,207.88,207.84,0.03490253]
[1756979646438,0.03070082,207.88,207.84,7.29490253]
[1756979646738,7.81,207.87,207.84,7.29490253]
[1756979647130,0.03070082,207.88,207.84,7.29490253]
[1756979647433,7.81,207.87,207.84,7.29490253]
[1756979649136,7.81,207.87,207.84,0.03490253]
[1756979649336,0.03070082,207.88,207.84,0.03490253]
[1756979649639,7.81,207.87,207.84,0.03490253]
[1756979649832,7.81,207.87,207.84,7.29490253]
[1756979650028,0.03070082,207.88,207.84,7.29490253]
[1756979650234,7.81,207.87,207.85,7.26]
[1756979651939,0.03070082,207.88,207.84,0.03490253]
[1756979652237,7.84070082,207.88,207.85,7.62]
[1756979652638,0.03070082,207.88,207.85,7.62]
[1756979653436,0.03070082,207.88,207.84,0.03490253]
[1756979653632,0.03070082,207.88,207.85,7.62]
[1756979653838,7.99070082,207.88,207.85,7.62]
[1756979655140,7.99070082,207.88,207.84,0.03490253]
[1756979655341,0.03070082,207.88,207.84,0.03490253]
[1756979655537,7.96,207.87,207.84,0.03490253]
[1756979656040,13.35186048,207.87,207.84,0.03490253]
[1756979656639,7.96,207.86,207.84,0.03490253]
[1756979657036,5.4225613,207.88,207.84,0.03490253]
[1756979657436,7.96,207.87,207.84,0.03490253]
[1756979657841,5.4225613,207.88,207.84,0.03490253]
[1756979658741,7.96,207.87,207.84,0.03490253]
[1756979658941,5.4225613,207.88,207.84,0.03490253]
[1756979659338,7.96,207.87,207.84,0.03490253]
[1756979660140,5.4225613,207.88,207.84,0.03490253]
[1756979660542,7.96,207.87,207.84,0.03490253]
[1756979660737,5.4225613,207.88,207.84,0.03490253]
[1756979660942,7.96,207.87,207.84,0.03490253]
[1756979661243,5.4225613,207.88,207.84,0.03490253]
[1756979661433,7.96,207.87,207.84,0.03490253]
[1756979662344,5.4225613,207.88,207.84,0.03490253]
[1756979662844,7.96,207.87,207.84,0.03490253]
[1756979663041,5.4225613,207.88,207.84,0.03490253]
[1756979663246,121.8625613,207.88,207.84,0.03490253]
[1756979663541,7.96,207.87,207.84,0.03490253]
[1756979663743,121.8625613,207.88,207.84,0.03490253]
[1756979664048,7.96,207.87,207.84,0.03490253]
[1756979664341,7.96,207.87,207.85,7.62]
[1756979665446,7.99070082,207.88,207.84,0.03490253]
[1756979665847,7.99070082,207.88,207.85,7.62]
[1756979666046,7.99070082,207.88,207.84,0.03490253]
[1756979666644,7.99070082,207.88,207.85,7.62]
[1756979667442,7.99070082,207.88,207.84,0.03490253]
[1756979667644,0.03070082,207.88,207.85,7.62]
[1756979670848,0.03070082,207.88,207.84,3.09112586]
[1756979671346,0.03070082,207.88,207.85,7.62]
[1756979672548,0.03070082,207.88,207.84,3.09112586]
[1756979673155,0.03070082,207.88,207.85,7.62]
[1756979673752,0.03070082,207.88,207.84,3.09112586]
[1756979674055,0.03070082,207.88,207.85,7.62]
[1756979674548,0.03070082,207.88,207.84,3.09112586]
[1756979675056,0.03070082,207.88,207.85,7.62]
[1756979676053,0.03070082,207.88,207.84,3.09112586]
[1756979676351,0.03070082,207.88,207.85,7.62]
[1756979677250,0.03070082,207.88,207.85,3.05622333]
[1756979677450,0.03070082,207.88,207.86,7.62]
[1756979677654,0.03070082,207.88,207.85,3.05622333]
[1756979677851,0.03070082,207.88,207.86,7.62]
[1756979678047,0.03070082,207.88,207.85,3.05622333]
[1756979678446,0.03070082,207.88,207.86,7.62]
[1756979678651,0.03070082,207.88,207.85,3.05622333]
[1756979679056,0.03070082,207.88,207.86,7.62]
[1756979679952,0.03070082,207.88,207.85,3.05622333]
[1756979680452,0.03070082,207.88,207.86,7.62]
[1756979680851,0.03070082,207.88,207.85,3.05622333]
[1756979681251,0.03070082,207.88,207.86,7.62]
[1756979681754,0.03070082,207.88,207.85,3.05622333]
[1756979682347,0.03070082,207.88,207.86,7.98]
[1756979682554,0.03070082,207.88,207.85,3.05622333]
[1756979682951,0.03070082,207.88,207.86,7.98]
[1756979683757,7.93,207.87,207.84,0.03490253]
[1756979683955,0.03070082,207.88,207.84,8.01490253]
[1756979684153,0.03070082,207.88,207.84,0.03490253]
[1756979684355,7.93,207.87,207.84,0.03490253]
[1756979685155,0.03070082,207.88,207.84,0.03490253]
[1756979685353,7.93,207.87,207.84,0.03490253]
[1756979685550,7.93,207.86,207.84,0.03490253]
[1756979686053,1.95599284,207.87,207.84,0.03490253]
[1756979686754,7.93,207.86,207.84,0.03490253]
[1756979686955,7.93,207.86,207.84,8.01490253]
[1756979693768,0.03070082,207.88,207.85,7.98]
[1756979693967,7.96070082,207.88,207.85,7.98]
[1756979694264,0.03070082,207.88,207.85,7.98]
[1756979694472,7.93,207.87,207.85,7.98]
[1756979694662,7.93,207.87,207.84,0.03490253]
[1756979695064,7.93,207.87,207.84,8.01490253]
[1756979695765,0.03070082,207.88,207.84,8.01490253]
[1756979695966,7.93,207.87,207.84,8.01490253]
[1756979697075,7.93,207.87,207.84,0.03490253]
[1756979697269,7.93,207.87,207.85,7.98]
[1756979704073,7.93,207.87,207.84,1.99089537]
[1756979704271,7.96070082,207.88,207.85,7.98]
[1756979704877,7.93,207.87,207.85,7.98]
[1756979708577,7.93,207.87,207.84,1.99089537]
[1756979708578,7.93,207.87,207.84,0.03490253]
[1756979708983,0.03070082,207.88,207.84,0.03490253]
[1756979709685,7.93,207.87,207.84,0.03490253]
[1756979709982,7.93,207.87,207.84,8.01490253]
[1756979711079,0.03070082,207.88,207.84,8.01490253]
[1756979711485,7.93,207.87,207.84,8.01490253]
[1756979711685,0.03070082,207.88,207.84,1.99089537]
[1756979711885,0.03070082,207.88,207.87,7.98]
[1756979716283,0.03070082,207.88,207.85,1.95599284]
[1756979716483,7.94070082,207.88,207.85,9.50599284]
[1756979717187,7.94070082,207.88,207.86,7.55]
[1756979717188,0.03070082,207.88,207.86,7.55]
[1756979717692,0.03070082,207.88,207.85,1.95599284]
[1756979718093,0.03070082,207.88,207.86,7.55]
[1756979719189,0.03070082,207.88,207.85,1.95599284]
[1756979719391,0.03070082,207.88,207.86,7.55]
[1756979719790,0.03070082,207.88,207.85,1.95599284]
[1756979720085,0.03070082,207.88,207.86,7.55]
[1756979720288,0.03070082,207.88,207.85,1.95599284]
[1756979720889,0.03070082,207.88,207.86,7.55]
[1756979721185,0.03070082,207.88,207.85,1.95599284]
[1756979721589,0.03070082,207.88,207.86,7.55]
[1756979723597,0.03070082,207.88,207.85,1.95599284]
[1756979723790,0.03070082,207.88,207.86,7.55]
[1756979723990,0.03070082,207.88,207.85,1.95599284]
[1756979724192,0.03070082,207.88,207.86,7.55]
[1756979724399,0.03070082,207.88,207.85,1.95599284]
[1756979724793,0.03070082,207.88,207.86,7.55]
[1756979725190,0.03070082,207.88,207.85,1.95599284]
[1756979725701,0.03070082,207.88,207.87,9.50599284]
[1756979747413,0.03070082,207.88,207.87,7.55]
[1756979756419,7.86,207.87,207.84,0.03490253]
[1756979756619,7.86,207.87,207.84,7.70490253]
[1756979757219,0.03070082,207.88,207.84,0.03490253]
[1756979757614,7.86,207.87,207.84,0.03490253]
[1756979757921,7.86,207.87,207.84,7.70490253]
[1756979758216,0.03070082,207.88,207.84,7.70490253]
[1756979758615,7.86,207.87,207.84,7.70490253]
[1756979759215,0.03070082,207.88,207.85,7.67]
[1756979759420,0.03070082,207.88,207.84,0.03490253]
[1756979760111,0.03070082,207.88,207.85,7.67]
[1756979760314,0.03070082,207.88,207.84,0.03490253]
[1756979760715,0.03070082,207.88,207.85,7.67]
[1756979761121,0.03070082,207.88,207.87,7.67]
[1756979765429,5.39186048,207.98,207.87,7.67]
[1756979765635,7.86,207.99,207.92,7.67]
[1756979766829,7.86,207.99,207.93,0.03104261]
[1756979798657,10.91395717,207.99,207.93,0.03104261]
[1756979799554,127.33395717,207.99,207.93,0.03104261]
[1756979800056,10.91395717,207.99,207.93,0.03104261]
[1756979800960,7.86,207.99,207.93,0.03104261]
[1756979801163,13.25186048,207.99,207.93,0.03104261]
[1756979802562,7.86,207.99,207.93,0.03104261]
[1756979803061,13.25186048,207.99,207.93,0.03104261]
[1756979806466,5.39186048,207.98,207.93,0.03104261]
[1756979807462,7.34,207.97,207.93,0.03104261]
[1756979808268,1.95409077,207.98,207.93,0.03104261]
[1756979808868,7.34,207.97,207.93,0.03104261]
[1756979809069,1.95409077,207.98,207.93,0.03104261]
[1756979809772,7.34,207.97,207.93,0.03104261]
[1756979809968,1.95409077,207.98,207.93,0.03104261]
[1756979810268,7.34,207.97,207.93,0.03104261]
[1756979810466,1.95409077,207.98,207.93,0.03104261]
[1756979810670,7.34,207.97,207.93,0.03104261]
[1756979810861,12.73186048,207.99,207.93,8.02104261]
[1756979811061,14.68595125,207.99,207.93,8.02104261]
[1756979811261,9.29409077,207.99,207.93,8.02104261]
[1756979814469,9.29409077,207.99,207.93,0.03104261]
[1756979817773,1.95409077,207.97,207.93,0.03104261]
[1756979818073,7.34,207.96,207.93,0.03104261]
[1756979819369,1.95409077,207.97,207.93,0.03104261]
[1756979819570,7.34,207.96,207.93,0.03104261]
[1756979819773,7.34,207.94,207.93,0.03104261]
[1756979822879,9.29409077,207.96,207.93,8.02104261]
[1756979823083,7.34,207.96,207.93,8.02104261]
[1756979823771,7.34,207.98,207.93,8.02104261]
[1756979823974,116.38,207.99,207.93,8.02104261]
[1756979824179,7.34,207.99,207.93,0.03104261]
[1756979825380,1.95409077,207.98,207.93,0.03104261]
[1756979825580,7.34,207.97,207.93,0.03104261]
[1756979825781,1.95409077,207.98,207.93,8.02104261]
[1756979826572,7.34,207.97,207.93,8.02104261]
[1756979826973,1.95409077,207.98,207.93,8.02104261]
[1756979827176,219.90103385,208.0,207.93,0.03104261]
[1756979827483,219.90103385,208.0,207.93,8.02104261]
[1756979827484,7.34,207.99,207.93,8.02104261]
[1756979829382,219.90103385,208.0,207.94,1.95409077]
[1756979829884,7.34,207.99,207.94,1.95409077]
[1756979830285,219.90103385,208.0,207.94,1.95409077]
[1756979830486,7.34,207.99,207.94,1.95409077]
[1756979830986,227.24103385,208.0,207.94,9.94409077]
[1756979832992,219.90103385,208.0,207.94,9.94409077]
[1756979833188,7.75,207.99,207.94,9.94409077]
[1756979833491,219.90103385,208.0,207.94,9.94409077]
[1756979833686,7.75,207.99,207.94,9.94409077]
[1756979833883,219.90103385,208.0,207.94,9.94409077]
[1756979834086,7.75,207.99,207.94,9.94409077]
[1756979834494,219.86103385,208.0,207.94,9.94409077]
[1756979835097,7.75,207.99,207.94,9.94409077]
[1756979835297,219.86103385,208.0,207.94,9.94409077]
[1756979836695,7.75,207.99,207.94,9.94409077]
[1756979837295,219.86103385,208.0,207.94,9.94409077]
[1756979837694,7.75,207.99,207.94,9.94409077]
[1756979837890,219.86103385,208.0,207.94,9.94409077]
[1756979838093,7.75,207.99,207.94,9.94409077]
[1756979838291,219.86103385,208.0,207.94,9.94409077]
[1756979838494,7.75,207.99,207.94,1.95409077]
[1756979842703,7.75,207.99,207.93,1.98513338]
[1756979844905,7.75,207.99,207.93,0.03104261]
[1756979845106,9.70409077,207.99,207.93,1.98513338]
[1756979847006,9.70409077,207.99,207.93,0.03104261]
[1756979848306,7.75,207.99,207.93,0.03104261]
[1756979854508,7.75,207.97,207.93,0.03104261]
[1756979854708,7.75,207.95,207.93,0.03104261]
[1756979854904,124.09,207.94,207.93,0.03104261]
[1756979855516,126.04409077,207.94,207.86,1.95409077]
[1756979856913,5.42228459,207.96,207.91,7.45]
[1756979856914,116.34,207.93,207.91,7.45]
[1756979857510,124.09,207.93,207.91,7.45]
[1756979858416,7.75,207.93,207.91,7.45]
[1756979859412,7.75,207.93,207.9,1.95409077]
[1756979859614,7.75,207.93,207.9,9.40409077]
[1756979859917,0.03589119,207.94,207.9,9.40409077]
[1756979860118,7.75,207.93,207.9,9.40409077]
[1756979860417,0.03589119,207.94,207.9,9.40409077]
[1756979860712,7.75,207.93,207.88,0.03458076]
[1756979860917,0.03589119,207.94,207.88,0.03458076]
[1756979861112,124.09,207.93,207.88,0.03458076]
[1756979861314,124.09,207.93,207.89,7.45]
[1756979861808,116.37589119,207.94,207.89,1.95409077]
[1756979862009,116.37589119,207.94,207.9,7.45]
[1756979862210,124.09589119,207.94,207.89,1.95409077]
[1756979862413,7.72,207.93,207.9,7.43]
[1756979862918,7.72,207.93,207.89,1.95409077]
[1756979862919,0.03589119,207.94,207.91,1.95409077]
[1756979863219,0.03589119,207.94,207.92,7.43]
[1756979864115,0.03589119,207.94,207.93,9.38409077]
[1756979867417,0.03589119,207.94,207.93,7.43]
[1756979885029,7.75589119,207.94,207.91,10.48266342]
[1756979885328,0.03589119,207.94,207.91,3.05266342]
[1756979885534,0.03589119,207.94,207.92,7.43]
[1756979886225,0.03589119,207.94,207.91,3.05266342]
[1756979886431,0.03589119,207.94,207.92,7.43]
[1756979886830,0.03589119,207.94,207.91,3.05266342]
[1756979887332,0.03589119,207.94,207.92,7.43]
[1756979887535,0.03589119,207.94,207.91,3.05266342]
[1756979887926,0.03589119,207.94,207.92,7.43]
[1756979888128,0.03589119,207.94,207.91,3.05266342]
[1756979889036,0.03589119,207.94,207.92,7.43]
[1756979889423,0.03589119,207.94,207.91,3.05266342]
[1756979889729,0.03589119,207.94,207.92,7.43]
[1756979889936,0.03589119,207.94,207.91,3.05266342]
[1756979890526,0.03589119,207.94,207.92,7.43]
[1756979890723,0.03589119,207.94,207.91,3.05266342]
[1756979891724,0.03589119,207.94,207.92,7.43]
[1756979892231,0.03589119,207.94,207.92,7.35]
[1756979892633,0.03589119,207.94,207.91,3.05266342]
[1756979893935,0.03589119,207.94,207.92,7.35]
[1756979894829,0.03589119,207.94,207.91,3.05266342]
[1756979896638,0.03589119,207.94,207.92,7.35]
[1756979896934,0.03589119,207.94,207.88,0.03458076]
[1756979897334,0.03589119,207.94,207.89,7.35]
[1756979898633,0.03589119,207.94,207.88,0.03458076]
[1756979898834,0.03589119,207.94,207.89,7.35]
[1756979899035,7.64589119,207.94,207.89,7.35]
[1756979899234,7.64589119,207.94,207.88,0.03458076]
[1756979899235,0.03589119,207.94,207.88,0.03458076]
[1756979899439,7.64589119,207.94,207.88,7.38458076]
[1756979901142,7.64589119,207.94,207.88,0.03458076]
[1756979906942,10.69855461,207.94,207.88,0.03458076]
[1756979908335,7.64589119,207.94,207.88,0.03458076]
[1756979908541,7.64589119,207.94,207.88,7.38458076]
[1756979922258,0.03589119,207.94,207.88,7.38458076]
[1756979922751,0.03589119,207.94,207.91,7.59]
[1756979924262,0.03589119,207.94,207.9,3.05266342]
[1756979924752,0.03589119,207.94,207.91,7.59]
[1756979924951,0.03589119,207.94,207.9,3.05266342]
[1756979925357,0.03589119,207.94,207.91,7.59]
[1756979925656,0.03589119,207.94,207.9,3.05266342]
[1756979925862,0.03589119,207.94,207.91,7.59]
[1756979927359,0.03589119,207.94,207.9,3.05266342]
[1756979927663,0.03589119,207.94,207.91,7.59]
[1756979928364,0.03589119,207.94,207.9,3.05266342]
[1756979928859,0.03589119,207.94,207.91,7.59]
[1756979929163,0.03589119,207.94,207.9,3.05266342]
[1756979929567,0.03589119,207.94,207.93,9.54355079]
[1756979934977,0.03589119,207.94,207.93,7.59]
[1756979935177,0.03589119,207.94,207.93,9.54355079]
[1756979948083,7.84,208.01,207.93,9.54355079]
[1756979948285,1.95355079,208.04,207.97,1.95355079]
[1756979948286,7.84,208.03,207.97,1.95355079]
[1756979949486,7.84,208.03,207.98,0.03193878]
[1756979959592,7.64,208.06,207.99,1.95355079]
[1756979959892,114.76096695,208.07,208.01,1.95355079]
[1756979960289,7.64,208.06,208.01,1.95355079]
[1756979960690,114.76096695,208.07,208.01,1.95355079]
[1756979962697,7.64,208.06,208.01,1.95355079]
[1756979963191,114.76096695,208.07,208.01,1.95355079]
[1756979963394,114.76096695,208.07,208.03,1.95355079]
[1756979963892,7.64,208.06,208.03,9.40355079]
[1756979964098,7.64,208.06,208.03,9.43490661]
[1756979964494,7.64,208.06,208.04,7.45]
[1756979965297,7.64,208.1,208.03,1.98490661]
[1756979965494,7.64,208.1,208.07,1.95355079]
[1756979965698,7.64,208.09,208.07,1.95355079]
[1756979965898,7.64,208.11,208.07,1.95355079]
[1756979966095,116.72,208.12,208.07,1.95355079]
[1756979966397,7.64,208.11,208.07,7.48053817]
[1756979966899,7.64,208.11,208.08,1.95355079]
[1756979967103,116.72,208.12,208.08,1.95355079]
[1756979967901,7.64,208.11,208.08,1.95355079]
[1756979968102,7.64,208.14,208.08,1.95355079]
[1756979972901,7.64,208.14,208.1,1.95355079]
[1756979973100,1.95355079,208.16,208.1,1.95355079]
[1756979973302,5.39186048,208.19,208.1,1.95355079]
[1756979973509,7.64,208.18,208.12,1.95355079]
[1756979974005,7.64,208.18,208.13,0.03693532]
[1756979975701,1.95355079,208.19,208.13,0.03693532]
[1756979975896,7.64,208.18,208.13,0.03693532]
[1756979976100,7.64,208.18,208.14,1.95355079]
[1756979976305,7.64,208.17,208.14,1.95355079]
[1756979976504,7.64,208.19,208.14,1.95355079]
[1756979976811,7.64,208.21,208.13,0.03693532]
[1756979977106,7.64,208.21,208.14,1.95355079]
[1756979977301,9.59355079,208.21,208.14,1.95355079]
[1756979977609,7.64,208.21,208.14,1.95355079]
[1756979977806,9.59355079,208.21,208.14,1.95355079]
[1756979978802,7.64,208.21,208.14,1.95355079]
[1756979979002,9.59355079,208.21,208.14,1.95355079]
[1756979980801,9.59355079,208.21,208.15,7.45]
[1756979981002,7.64,208.2,208.16,1.95355079]
[1756979981207,1.95355079,208.21,208.16,1.95355079]
[1756979981409,13.03186048,208.24,208.16,1.95355079]
[1756979981602,1.95355079,208.22,208.16,1.95355079]
[1756979982103,7.84,208.21,208.17,0.03342073]
[1756979982907,1.95355079,208.22,208.17,0.03342073]
[1756979983102,7.84,208.21,208.17,0.03342073]
[1756979983306,1.95355079,208.22,208.17,0.03342073]
[1756979983504,7.84,208.21,208.17,0.03342073]
[1756979983701,1.95355079,208.22,208.17,0.03342073]
[1756979983909,7.84,208.21,208.17,0.03342073]
[1756979984304,1.95355079,208.22,208.17,0.03342073]
[1756979984507,7.84,208.21,208.17,0.03342073]
[1756979984810,1.95355079,208.22,208.17,0.03342073]
[1756979985712,7.84,208.21,208.17,0.03342073]
[1756979985909,7.84,208.22,208.17,0.03342073]
[1756979989717,10.88616747,208.22,208.17,0.03342073]
[1756979992313,16.27802795,208.22,208.17,0.03342073]
[1756979996013,13.23186048,208.22,208.17,0.03342073]
[1756979996218,116.42,208.21,208.17,0.03342073]
[1756979996412,7.84,208.2,208.17,0.03342073]
[1756979998221,116.42,208.21,208.17,0.03342073]
[1756979998409,7.84,208.2,208.17,0.03342073]
[1756979998814,116.42,208.21,208.17,0.03342073]
[1756979999015,7.84,208.2,208.17,0.03342073]
[1756979999323,116.42,208.21,208.17,0.03342073]
[1756979999519,7.84,208.2,208.17,0.03342073]
[1756979999920,116.42,208.21,208.17,0.03342073]
[1756980000819,7.84,208.2,208.17,0.03342073]
[1756980001420,116.42,208.21,208.17,0.03342073]
[1756980001620,7.84,208.2,208.17,0.03342073]
[1756980001820,116.42,208.21,208.17,0.03342073]
[1756980002021,7.84,208.2,208.17,0.03342073]
[1756980003512,121.81186048,208.21,208.17,0.03342073]
[1756980003715,7.84,208.2,208.17,0.03342073]
[1756980004022,121.81186048,208.21,208.17,0.03342073]
[1756980004520,7.84,208.2,208.17,0.03342073]
[1756980005322,16.27802795,208.2,208.17,0.03342073]
[1756980005521,7.84,208.18,208.17,0.03342073]
[1756980005823,13.23186048,208.18,208.17,0.03342073]
[1756980006115,7.84,208.18,208.17,0.03342073]
[1756980006722,10.88616747,208.18,208.17,0.03342073]
[1756980008826,7.84,208.18,208.17,0.03342073]
[1756980010331,13.23092877,208.18,208.17,0.03342073]
[1756980011329,7.84,208.18,208.17,0.03342073]
[1756980015932,10.88616747,208.18,208.17,0.03342073]
[1756980016139,18.97395819,208.18,208.17,0.03342073]
[1756980018438,11.36616747,208.18,208.04,7.43]
[1756980018643,7.97,208.12,208.04,7.43]
[1756980018845,124.43,208.12,208.04,7.43]
[1756980022548,127.47616747,208.12,208.04,7.43]
[1756980022742,132.87373311,208.12,208.04,7.43]
[1756980025544,16.41373311,208.12,208.04,7.43]
[1756980025744,116.46,208.11,208.04,7.43]
[1756980025944,11.01616747,208.12,208.04,7.43]
[1756980026146,7.97,208.1,208.04,7.43]
[1756980028448,124.43,208.1,208.04,7.43]
[1756980028650,7.97,208.1,208.04,7.43]
[1756980031245,7.97,208.14,208.04,7.43]
[1756980031452,7.97,208.14,208.07,7.43]
[1756980042960,7.32,208.14,208.02,7.56]
[1756980043154,12.71756564,208.14,208.02,7.56]
[1756980044157,7.32,208.12,208.02,7.56]
[1756980045060,61.66,208.12,208.02,7.56]
[1756980045257,7.32,208.12,208.02,7.56]
[1756980045462,61.66,208.12,208.02,7.56]
[1756980045862,113.26,208.12,208.02,7.56]
[1756980046062,7.32,208.12,208.02,7.56]
[1756980046262,61.64,208.12,208.02,7.56]
[1756980047059,7.32,208.12,208.02,7.56]
[1756980049563,7.32,208.12,207.99,176.99714784]
[1756980049564,7.32,208.1,208.04,7.56]
[1756980050561,7.32,208.1,208.05,1.9517233]
[1756980050765,7.32,208.11,208.05,1.9517233]
[1756980051161,1.9517233,208.12,208.05,1.9517233]
[1756980051366,1.9517233,208.12,208.08,7.56]
[1756980051367,7.32,208.12,208.08,7.56]
[1756980051566,7.34928894,208.14,208.08,7.56]
[1756980051766,7.34928894,208.14,208.07,1.9517233]
[1756980051964,7.32,208.13,208.07,7.56]
[1756980055368,1.9517233,208.12,208.01,7.56]
[1756980055665,7.32,208.11,208.05,1.9517233]
[1756980057373,7.32,208.11,208.06,7.56]
[1756980057572,7.32,208.12,208.06,7.56]
[1756980059072,7.32,208.12,208.06,9.5117233]
[1756980059373,7.32,208.12,208.09,1.9517233]
[1756980059575,5.39756564,208.15,208.09,1.9517233]
[1756980059869,12.71756564,208.15,208.09,9.5117233]
[1756980060074,7.32,208.15,208.09,9.5117233]
[1756980061571,5.39756564,208.17,208.11,1.9517233]
[1756980061778,12.71756564,208.17,208.11,9.5117233]
[1756980068373,7.32,208.17,208.11,9.5117233]
[1756980068876,7.32,208.17,208.11,1.9517233]
[1756980069177,7.32,208.17,208.12,7.56]
[1756980069378,5.39756564,208.18,208.11,1.9517233]
[1756980069580,7.32,208.17,208.11,7.56]
[1756980069877,7.32,208.17,208.11,9.5117233]
[1756980072081,7.32,208.17,208.11,7.56]
[1756980072281,9.2717233,208.17,208.11,1.9517233]
[1756980074184,9.2717233,208.17,208.11,9.9317233]
[1756980074383,14.66928894,208.17,208.11,9.9317233]
[1756980074682,14.66928894,208.17,208.1,1.9517233]
[1756980075983,12.71756564,208.17,208.1,9.9317233]
[1756980076379,7.96,208.16,208.1,9.9317233]
[1756980085896,7.96,208.16,208.1,7.98]
[1756980086193,7.96,208.16,208.1,9.9317233]
[1756980090395,13.35756564,208.16,208.1,9.9317233]
[1756980093596,15.30928894,208.16,208.03,7.98]
[1756980093897,15.30928894,208.16,208.0,5.36766164]
[1756980093898,7.96,208.13,208.07,1.9517233]
[1756980094292,7.96,208.11,208.02,7.98]
[1756980094495,7.96,208.11,208.03,1.9517233]
[1756980094699,9.9117233,208.11,208.04,7.98]
[1756980095201,7.96,208.12,208.06,7.98]
[1756980096698,1.9517233,208.11,208.06,7.98]
[1756980096996,7.96,208.1,208.05,1.9517233]
[1756980097301,1.9517233,208.11,208.05,1.9517233]
[1756980097500,9.9117233,208.11,208.05,9.9317233]
[1756980097704,7.96,208.11,208.05,9.9317233]